fUST/lending_fUST_20260107
["ID","MTS","AMOUNT","RATE_DAILY","PERIOD"]
[400566294,1767725330419,150.75,6.736e-05,2]
[400566295,1767725330839,180.9,7.006e-05,2]
[400566296,1767725331262,211.05,7.275e-05,2]
[400566297,1767725331694,241.2,7.545e-05,2]
[400566298,1767725332152,271.35,7.814e-05,2]
[400566299,1767725332544,301.51,8.083e-05,2]
[400566335,1767725400479,181.59,6.06e-05,2]
[400566336,1767725400896,242.13,6.323e-05,2]
[400566337,1767725401400,302.66,6.587e-05,2]
[400566338,1767725401824,363.19,6.85e-05,2]
[400566339,1767725402262,423.72,7.114e-05,2]
[400566340,1767725403216,484.25,7.377e-05,2]
[400566341,1767725403827,544.78,7.641e-05,2]
[400566342,1767725404255,605.31,7.904e-05,2]
[400566357,1767725432286,-489.0,0.00013038,2]
[400566358,1767725432298,-973.0,0.00013038,2]
[400566360,1767725432342,-2704.21360694,0.00013038,2]
[400566362,1767725432353,-178.20802059,0.00013304,2]
[400566363,1767725432363,-166.66666666,0.00013573,2]
[400566365,1767725432372,-300.0,0.00013673,2]
[400566366,1767725432381,-300.0,0.00013698,2]
[400566368,1767725432391,-615.04672569,0.00013699,2]
[400566369,1767725432400,-500.0,0.00013699,2]
[400566371,1767725432409,-500.0,0.00013699,2]
[400566372,1767725432419,-156.44137789,0.00013699,2]
[400566373,1767725432430,-300.0,0.00013945,2]
[400566374,1767725432439,-300.0,0.00013945,2]
[400566375,1767725432448,-300.0,0.00013945,2]
[400566376,1767725432457,-300.0,0.00013945,2]
[400566378,1767725432467,-300.0,0.00013945,2]
[400566379,1767725432475,-300.0,0.00013945,2]
[400566380,1767725432484,-300.0,0.00013945,2]
[400566381,1767725432494,-300.0,0.00013945,2]
[400566382,1767725432503,-300.0,0.00013945,2]
[400566383,1767725432512,-300.0,0.00013945,2]
[400566384,1767725432521,-300.0,0.00013945,2]
[400566385,1767725432530,-300.0,0.00013945,2]
[400566386,1767725432540,-300.0,0.00013945,2]
[400566387,1767725432550,-300.0,0.00013945,2]
[400566388,1767725432559,-300.0,0.00013945,2]
[400566389,1767725432568,-171.49843656,0.00014175,2]
[400566390,1767725432577,-300.0,0.00014221,2]
[400566391,1767725432587,-312.13877261,0.00014223,2]
[400566400,1767725438377,-287.86122739,0.00014223,2]
[400566401,1767725438388,-500.0,0.00014247,2]
[400566403,1767725438398,-392.88170137,0.00014247,2]
[400566405,1767725438408,-210.80676111,0.00014722,2]
[400566407,1767725438418,-1000.0,0.00015,2]
[400566408,1767725438428,-420.0,0.00015011,2]
[400566409,1767725438437,-210.28546429,0.00015304,2]
[400566410,1767725438448,-720.0,0.00015645,2]
[400566411,1767725438457,-1000.0,0.00016091,2]
[400566412,1767725438467,-261.70915324,0.0001614,4]
[400566413,1767725438476,-977.61081049,0.00016373,2]
[400566414,1767725438488,-1265.43801451,0.00016373,2]
[400566415,1767725438498,-432.0,0.00016451,2]
[400566417,1767725438508,-864.0,0.0001721,2]
[400566419,1767725438518,-242.362908,0.00017303,2]
[400566420,1767725438529,-321.98749251,0.00017559,7]
[400566423,1767725438540,-1000.0,0.00018931,2]
[400566424,1767725438552,-390.35982784,0.00018978,9]
[400566426,1767725438562,-274.4403517,0.00019303,2]
[400566428,1767725438571,-254.0,0.00019507,3]
[400566430,1767725438581,-163.06318377,0.00019854,2]
[400566432,1767725438590,-465.96119911,0.00020396,12]
[400566434,1767725438600,-19149.6832465,0.00020407,2]
[400566436,1767725438612,-2748.0000002,0.00020407,2]
[400566439,1767725438626,-16134.01294925,0.00020407,2]
[400566441,1767725438638,-961968.30380405,0.00020407,2]
[400566443,1767725438648,-257.86,0.000205,2]
[400566445,1767725438658,-240.04,0.000205,2]
[400566447,1767725438668,-167.75,0.000205,2]
[400566449,1767725438678,-2347.07115484,0.00020636,2]
[400566451,1767725438688,-1412.60133704,0.0002069,2]
[400566452,1767725438698,-1000.0,0.00020824,2]
[400566454,1767725438708,-244.0,0.00020824,2]
[400566456,1767725438718,-2347.07115484,0.00021086,2]
[400566458,1767725438728,-5578.25225141,0.00021204,2]
[400566460,1767725438738,-684.0,0.00021231,2]
[400566462,1767725438749,-306.51779541,0.00021303,2]
[400566464,1767725438758,-2347.07115484,0.00021322,2]
[400566466,1767725438768,-684.0,0.00021368,2]
[400566468,1767725438778,-684.0,0.00021505,2]
[400566470,1767725438789,-2347.07115484,0.00021557,2]
[400566472,1767725438801,-684.0,0.00021642,2]
[400566474,1767725438811,-200.0,0.00021779,2]
[400566476,1767725438822,-684.0,0.00021779,2]
[400566478,1767725438832,-548.15661709,0.00021815,15]
[400566480,1767725438843,-2347.07115484,0.00021903,2]
[400566482,1767725438852,-684.0,0.00021916,2]
[400566484,1767725438864,-500.0,0.00021999,2]
[400566486,1767725438874,-2347.07115484,0.00022018,2]
[400566488,1767725438886,-684.0,0.00022053,2]
[400566490,1767725438897,-500.0,0.00022136,2]
[400566492,1767725438907,-684.0,0.0002219,2]
[400566495,1767725438917,-2347.07115484,0.000222,2]
[400566497,1767725438928,-151.0,0.00022233,2]
[400566499,1767725438938,-200.0,0.00022273,2]
[400566500,1767725438949,-300.0,0.00022273,2]
[400566503,1767725438959,-684.0,0.00022327,2]
[400566505,1767725438969,-344.28467429,0.00022357,2]
[400566507,1767725438978,-779.00830511,0.00022357,2]
[400566509,1767725438989,-500.0,0.00022357,2]
[400566511,1767725438999,-779.00830511,0.00022357,2]
[400566513,1767725439009,-779.00830511,0.00022357,2]
[400566515,1767725439019,-779.00830511,0.00022357,2]
[400566517,1767725439029,-779.00830511,0.00022357,2]
[400566519,1767725439039,-779.00830511,0.00022357,2]
[400566521,1767725439051,-779.00830511,0.00022357,2]
[400566523,1767725439061,-779.00830511,0.00022357,2]
[400566525,1767725439071,-511.03007203,0.00022357,2]
[400566527,1767725439081,-779.00830511,0.00022357,2]
[400566529,1767725439092,-779.00830511,0.00022357,2]
[400566531,1767725439102,-779.00830511,0.00022357,2]
[400566533,1767725439112,-500.0,0.00022357,2]
[400566535,1767725439121,-779.00830511,0.00022357,2]
[400566537,1767725439131,-779.00830511,0.00022357,2]
[400566539,1767725439141,-500.0,0.00022357,2]
[400566541,1767725439150,-779.00830511,0.00022357,2]
[400566543,1767725439160,-779.00830511,0.00022357,2]
[400566554,1767725439307,-779.00830511,0.00022357,2]
[400566555,1767725439318,-779.00830511,0.00022357,2]
[400566556,1767725439328,-779.00830511,0.00022357,2]
[400566557,1767725439338,-779.00830511,0.00022357,2]
[400566558,1767725439348,-779.00830511,0.00022357,2]
[400566559,1767725439357,-779.00830511,0.00022357,2]
[400566560,1767725439366,-779.00830511,0.00022357,2]
[400566561,1767725439376,-847.17153181,0.00022357,2]
[400566562,1767725439385,-847.17153181,0.00022357,2]
[400566563,1767725439398,-847.17153181,0.00022357,2]
[400566564,1767725439408,-847.17153181,0.00022357,2]
[400566565,1767725439418,-847.17153181,0.00022357,2]
[400566566,1767725439428,-847.17153181,0.00022357,2]
[400566567,1767725439439,-847.17153181,0.00022357,2]
[400566568,1767725439448,-847.17153181,0.00022357,2]
[400566569,1767725439458,-410.89,0.000224,2]
[400566570,1767725439469,-151.0,0.000224,6]
[400566571,1767725439479,-2328.61,0.000224,14]
[400566572,1767725439488,-22020.13,0.000224,2]
[400566573,1767725439498,-2758.74,0.000224,7]
[400566574,1767725439508,-257.86,0.000224,7]
[400566575,1767725439518,-240.04,0.000224,7]
[400566576,1767725439528,-684.0,0.00022464,2]
[400566577,1767725439538,-300.0,0.00022466,2]
[400566578,1767725439548,-2347.07115484,0.00022553,2]
[400566579,1767725439560,-684.0,0.00022601,2]
[400566580,1767725439570,-684.0,0.00022738,2]
[400566581,1767725439581,-181.0,0.00022795,8]
[400566582,1767725439592,-2347.07115484,0.00022838,2]
[400566583,1767725439601,-684.0,0.00022875,2]
[400566584,1767725439611,-1000.0,0.00022906,10]
[400566585,1767725439621,-492.0,0.00022906,10]
[400566586,1767725439631,-684.0,0.00023012,2]
[400566587,1767725439640,-450.0,0.00023014,2]
[400566588,1767725439649,-684.0,0.00023149,2]
[400566589,1767725439658,-500.0,0.0002315,2]
[400566590,1767725439667,-2347.07115484,0.00023164,2]
[400566591,1767725439677,-500.0,0.00023177,2]
[400566592,1767725439686,-2100.0,0.00023181,2]
[400566593,1767725439695,-2100.0,0.00023197,2]
[400566594,1767725439704,-636.45408895,0.00023234,17]
[400566595,1767725439714,-684.0,0.00023286,2]
[400566596,1767725439723,-2100.0,0.00023298,2]
[400566597,1767725439733,-338.59523912,0.00023303,2]
[400566598,1767725439742,-2100.0,0.00023335,2]
[400566599,1767725439751,-684.0,0.00023423,2]
[400566600,1767725439760,-500.0,0.00023429,2]
[400566601,1767725439769,-2100.0,0.00023435,2]
[400566602,1767725439778,-500.0,0.00023481,2]
[400566603,1767725439789,-5578.25225134,0.00023498,2]
[400566604,1767725439804,-2347.07115484,0.00023517,2]
[400566605,1767725439814,-2100.0,0.00023523,2]
[400566606,1767725439823,-684.0,0.0002356,2]
[400566607,1767725439834,-600.0,0.00023562,2]
[400566608,1767725439844,-500.0,0.00023569,2]
[400566609,1767725439854,-500.0,0.00023586,2]
[400566610,1767725439864,-2100.0,0.00023615,2]
[400566611,1767725439875,-2347.07115484,0.00023684,2]
[400566612,1767725439885,-684.0,0.00023697,2]
[400566613,1767725439895,-2758.74,0.000237,7]
[400566614,1767725439904,-279.35774616,0.00023715,2]
[400566615,1767725439913,-257.86,0.000238,7]
[400566616,1767725439923,-240.04,0.000238,7]
[400566617,1767725439932,-2100.0,0.0002383,2]
[400566618,1767725439941,-684.0,0.00023834,2]
[400566619,1767725439950,-500.0,0.0002385,2]
[400566620,1767725439960,-2100.0,0.00023861,2]
[400566621,1767725439969,-2100.0,0.0002387,2]
[400566622,1767725439979,-2347.07115484,0.00023891,2]
[400566623,1767725439988,-188.11386458,0.00023923,2]
[400566624,1767725439998,-151.0,0.00023954,2]
[400566626,1767725440007,-500.0,0.00023959,2]
[400566627,1767725440016,-684.0,0.00023971,2]
[400566628,1767725440025,-2100.0,0.00024004,2]
[400566629,1767725440035,-2100.0,0.0002402,2]
[400566630,1767725440044,-2100.0,0.00024024,2]
[400566631,1767725440054,-216.74142452,0.00024067,2]
[400566632,1767725440063,-2100.0,0.00024084,2]
[400566633,1767725440072,-500.0,0.00024105,2]
[400566634,1767725440082,-684.0,0.00024108,2]
[400566635,1767725440091,-750.0,0.0002411,2]
[400566636,1767725440101,-2347.07115484,0.00024151,2]
[400566637,1767725440110,-500.0,0.00024193,2]
[400566638,1767725440120,-2100.0,0.00024194,2]
[400566639,1767725440128,-500.0,0.00024195,2]
[400566640,1767725440137,-500.0,0.00024231,2]
[400566641,1767725440147,-684.0,0.00024245,2]
[400566642,1767725440156,-2100.0,0.0002426,2]
[400566643,1767725440166,-2100.0,0.00024297,2]
[400566644,1767725440175,-500.0,0.00024309,2]
[400566645,1767725440184,-2100.0,0.00024311,2]
[400566646,1767725440193,-2100.0,0.00024342,2]
[400566647,1767725440202,-500.0,0.00024366,2]
[400566648,1767725440211,-704.93393506,0.00024382,2]
[400566649,1767725440220,-2100.0,0.00024387,2]
[400566650,1767725440230,-22020.13,0.000244,2]
[400566651,1767725440239,-2100.0,0.00024423,2]
[400566652,1767725440250,-2100.0,0.00024458,2]
[400566653,1767725440259,-587.58501506,0.00024497,2]
[400566654,1767725440268,-2347.07115484,0.00024503,2]
[400566655,1767725440278,-2100.0,0.00024547,2]
[400566656,1767725440286,-500.0,0.00024548,2]
[400566657,1767725440296,-2100.0,0.00024557,2]
[400566658,1767725440306,-2243.048825,0.00024559,2]
[400566659,1767725440316,-2100.0,0.00024603,2]
[400566660,1767725440325,-730.45778725,0.00024652,20]
[400566661,1767725440334,-900.0,0.00024658,2]
[400566662,1767725440343,-500.0,0.00024658,2]
[400566663,1767725440353,-209.1906684,0.0002468,2]
[400566664,1767725440362,-38316.0129145,0.0002468,2]
[400566665,1767725440371,-10457.1000525,0.0002468,2]
[400566666,1767725440381,-2347.07115498,0.00024691,2]
[400566667,1767725440391,-11034.61992399,0.00024707,2]
[400566668,1767725440400,-500.0,0.00024719,2]
[400566669,1767725440409,-500.0,0.00024795,2]
[400566670,1767725440418,-500.0,0.0002483,2]
[400566671,1767725440427,-500.0,0.00024885,2]
[400566672,1767725440436,-1236.449,0.000249,30]
[400566673,1767725440445,-2000.0,0.000249,30]
[400566674,1767725440454,-2000.0,0.000249,30]
[400566675,1767725440463,-952.066,0.000249,30]
[400566676,1767725440472,-1000.0,0.000249,30]
[400566677,1767725440481,-1000.0,0.000249,30]
[400566678,1767725440490,-1000.0,0.000249,30]
[400566679,1767725440500,-1000.0,0.000249,30]
[400566680,1767725440508,-1000.0,0.000249,30]
[400566681,1767725440517,-1000.0,0.000249,30]
[400566682,1767725440527,-1000.0,0.000249,30]
[400566683,1767725440536,-1000.0,0.000249,30]
[400566684,1767725440545,-1000.0,0.000249,30]
[400566685,1767725440556,-475.0,0.000249,30]
[400566686,1767725440565,-475.0,0.000249,30]
[400566687,1767725440574,-475.0,0.000249,30]
[400566688,1767725440583,-475.0,0.000249,30]
[400566689,1767725440592,-475.0,0.000249,30]
[400566690,1767725440601,-475.0,0.000249,30]
[400566691,1767725440610,-475.0,0.000249,30]
[400566692,1767725440619,-475.0,0.000249,30]
[400566693,1767725440628,-475.0,0.000249,30]
[400566694,1767725440637,-475.0,0.000249,30]
[400566695,1767725440646,-475.0,0.000249,30]
[400566696,1767725440657,-475.0,0.000249,30]
[400566697,1767725440666,-475.0,0.000249,30]
[400566698,1767725440675,-475.0,0.000249,30]
[400566699,1767725440684,-475.0,0.000249,30]
[400566700,1767725440694,-475.0,0.000249,30]
[400566702,1767725440703,-475.0,0.000249,30]
[400566704,1767725440712,-475.0,0.000249,30]
[400566706,1767725440721,-475.0,0.000249,30]
[400566707,1767725440730,-475.0,0.000249,30]
[400566708,1767725440739,-475.0,0.000249,30]
[400566709,1767725440748,-475.0,0.000249,30]
[400566710,1767725440757,-475.0,0.000249,30]
[400566711,1767725440766,-475.0,0.000249,30]
[400566712,1767725440775,-475.0,0.000249,30]
[400566713,1767725440783,-475.0,0.000249,30]
[400566714,1767725440796,-475.0,0.000249,30]
[400566715,1767725440805,-475.0,0.000249,30]
[400566716,1767725440815,-475.0,0.000249,30]
[400566717,1767725440824,-475.0,0.000249,30]
[400566718,1767725440835,-475.0,0.000249,30]
[400566719,1767725440844,-475.0,0.000249,30]
[400566720,1767725440853,-475.0,0.000249,30]
[400566721,1767725440862,-475.0,0.000249,30]
[400566722,1767725440874,-475.0,0.000249,30]
[400566723,1767725440883,-475.0,0.000249,30]
[400566724,1767725440892,-475.0,0.000249,30]
[400566725,1767725440901,-475.0,0.000249,30]
[400566726,1767725440910,-475.0,0.000249,30]
[400566727,1767725440919,-475.0,0.000249,30]
[400566728,1767725440928,-475.0,0.000249,30]
[400566729,1767725440937,-475.0,0.000249,30]
[400566730,1767725440946,-475.0,0.000249,30]
[400566731,1767725440957,-475.0,0.000249,30]
[400566732,1767725440966,-475.0,0.000249,30]
[400566733,1767725440975,-475.0,0.000249,30]
[400566734,1767725440983,-475.0,0.000249,30]
[400566735,1767725440992,-475.0,0.000249,30]
[400566736,1767725441001,-475.0,0.000249,30]
[400566737,1767725441011,-475.0,0.000249,30]
[400566738,1767725441019,-475.0,0.000249,30]
[400566739,1767725441029,-475.0,0.000249,30]
[400566740,1767725441038,-475.0,0.000249,30]
[400566741,1767725441047,-475.0,0.000249,30]
[400566742,1767725441057,-475.0,0.000249,30]
[400566743,1767725441066,-151.0,0.000249,7]
[400566744,1767725441075,-262.607866,0.000249,7]
[400566745,1767725441084,-151.0,0.000249,7]
[400566746,1767725441093,-155.649023,0.000249,7]
[400566747,1767725441103,-151.0,0.000249,7]
[400566748,1767725441112,-152.72294,0.000249,7]
[400566749,1767725441121,-151.0,0.000249,7]
[400566750,1767725441130,-151.0,0.000249,7]
[400566751,1767725441139,-151.0,0.000249,7]
[400566752,1767725441148,-151.0,0.000249,7]
[400566753,1767725441157,-151.0,0.000249,7]
[400566754,1767725441166,-151.0,0.000249,7]
[400566755,1767725441175,-194.712966,0.000249,7]
[400566756,1767725441184,-194.712966,0.000249,7]
[400566757,1767725441194,-194.712966,0.000249,7]
[400566758,1767725441203,-194.712966,0.000249,7]
[400566759,1767725441212,-1018.61402592,0.000249,2]
[400566760,1767725441221,-4074.45610369,0.000249,2]
[400566761,1767725441231,-327.43234651,0.000249,2]
[400566762,1767725441240,-1309.72938603,0.000249,2]
[400566763,1767725441249,-2946.89111857,0.000249,2]
[400566764,1767725441258,-5238.91754412,0.000249,2]
[400566765,1767725441267,-8185.80866269,0.000249,2]
[400566766,1767725441277,-191.004961,0.000249,7]
[400566767,1767725441287,-151.0,0.000249,7]
[400566768,1767725441296,-151.0,0.000249,7]
[400566769,1767725441306,-151.0,0.000249,7]
[400566770,1767725441316,-151.0,0.000249,7]
[400566771,1767725441325,-151.0,0.000249,7]
[400566772,1767725441334,-409.150764,0.000249,7]
[400566773,1767725441343,-409.150764,0.000249,7]
[400566774,1767725441352,-409.150764,0.000249,7]
[400566775,1767725441362,-409.150764,0.000249,7]
[400566776,1767725441371,-181.138598,0.000249,7]
[400566777,1767725441381,-151.0,0.000249,7]
[400566778,1767725441390,-251.46189,0.000249,7]
[400566779,1767725441400,-164.05427,0.000249,7]
[400566781,1767725441409,-501.631256,0.000249,7]
[400566783,1767725441418,-501.631256,0.000249,7]
[400566784,1767725441428,-501.631256,0.000249,7]
[400566786,1767725441438,-501.631256,0.000249,7]
[400566788,1767725441447,-151.0,0.000249,7]
[400566790,1767725441456,-258.099142,0.000249,7]
[400566792,1767725441465,-258.099142,0.000249,7]
[400566794,1767725441475,-258.099142,0.000249,7]
[400566796,1767725441484,-258.099142,0.000249,7]
[400566798,1767725441493,-246.520699,0.000249,7]
[400566800,1767725441502,-246.520699,0.000249,7]
[400566802,1767725441511,-246.520699,0.000249,7]
[400566804,1767725441520,-246.520699,0.000249,7]
[400566806,1767725441530,-151.0,0.000249,7]
[400566808,1767725441540,-178.486087,0.000249,7]
[400566809,1767725441549,-151.0,0.000249,7]
[400566810,1767725441562,-178.486087,0.000249,7]
[400566811,1767725441571,-151.0,0.000249,7]
[400566812,1767725441581,-2100.0,0.000249,2]
[400566813,1767725441590,-178.486087,0.000249,7]
[400566814,1767725441599,-178.486087,0.000249,7]
[400566815,1767725441608,-151.0,0.000249,7]
[400566816,1767725441617,-151.0,0.000249,7]
[400566817,1767725441626,-151.0,0.000249,7]
[400566818,1767725441635,-151.0,0.000249,7]
[400566819,1767725441644,-151.0,0.000249,7]
[400566820,1767725441653,-182.954816,0.000249,7]
[400566821,1767725441662,-72728.1750626,0.000249,2]
[400566823,1767725441672,-153.743312,0.000249,7]
[400566824,1767725441682,-153.789809,0.000249,7]
[400566825,1767725441691,-618.008304,0.000249,7]
[400566826,1767725441700,-618.008304,0.000249,7]
[400566827,1767725441709,-618.008304,0.000249,7]
[400566828,1767725441718,-618.008304,0.000249,7]
[400566829,1767725441727,-500.0,0.00024904,2]
[400566830,1767725441736,-500.0,0.00024932,2]
[400566831,1767725441746,-166.0,0.0002495,3]
[400566832,1767725441755,-357.37586378,0.0002495,3]
[400566833,1767725441764,-166.0,0.0002495,3]
[400566834,1767725441773,-166.0,0.0002495,3]
[400566835,1767725441782,-152.0,0.0002495,3]
[400566836,1767725441793,-152.0,0.0002495,3]
[400566837,1767725441803,-152.0,0.0002495,3]
[400566838,1767725441811,-163.0,0.0002495,3]
[400566839,1767725441820,-153.76138875,0.0002495,3]
[400566840,1767725441830,-163.0,0.0002495,3]
[400566841,1767725441839,-185.22374852,0.0002495,3]
[400566842,1767725441847,-210.16908342,0.0002495,2]
[400566843,1767725441857,-2100.0,0.00024961,2]
[400566844,1767725441869,-10633.48840099,0.00025,2]
[400566845,1767725441878,-10364.0,0.00025,2]
[400566846,1767725441888,-500.0,0.00025,2]
[400566847,1767725441897,-300.0,0.00025,30]
[400566848,1767725441906,-1188.6506679,0.00025,2]
[400566849,1767725441915,-758.94232624,0.00025,2]
[400566850,1767725441924,-500.0,0.00025,2]
[400566851,1767725442026,-500.0,0.00025,2]
[400566852,1767725442046,-500.0,0.00025,2]
[400566853,1767725442057,-500.0,0.00025,2]
[400566854,1767725442065,-500.0,0.00025,2]
[400566855,1767725442074,-500.0,0.00025,2]
[400566856,1767725442083,-506.55124883,0.00025,2]
[400566857,1767725442092,-2758.74,0.00025,7]
[400566858,1767725442101,-1000.0,0.00025,2]
[400566859,1767725442110,-1000.0,0.00025,2]
[400566860,1767725442119,-1000.0,0.00025,2]
[400566861,1767725442128,-1000.0,0.00025,2]
[400566862,1767725442138,-1000.0,0.00025,2]
[400566863,1767725442147,-1000.0,0.00025,2]
[400566864,1767725442158,-1000.0,0.00025,2]
[400566865,1767725442167,-1000.0,0.00025,2]
[400566866,1767725442176,-1000.0,0.00025,2]
[400566867,1767725442185,-1000.0,0.00025,2]
[400566868,1767725442194,-1000.0,0.00025,2]
[400566869,1767725442203,-1000.0,0.00025,2]
[400566870,1767725442212,-1000.0,0.00025,2]
[400566871,1767725442221,-1000.0,0.00025,2]
[400566872,1767725442230,-1000.0,0.00025,2]
[400566873,1767725442240,-1000.0,0.00025,2]
[400566874,1767725442249,-1000.0,0.00025,2]
[400566875,1767725442259,-574.71139925,0.00025,2]
[400566876,1767725442269,-1020.73276343,0.00025,2]
[400566877,1767725442278,-1000.0,0.00025,2]
[400566878,1767725442288,-278.91034954,0.00025,2]
[400566879,1767725442297,-167.90581026,0.00025,2]
[400566880,1767725442308,-151.0,0.00025,2]
[400566881,1767725442318,-151.0,0.00025,2]
[400566882,1767725442327,-151.0,0.00025,2]
[400566883,1767725442336,-151.0,0.00025,2]
[400566884,1767725442345,-151.0,0.00025,2]
[400566885,1767725442355,-151.0,0.00025,2]
[400566886,1767725442363,-151.0,0.00025,2]
[400566887,1767725442373,-151.0,0.00025,2]
[400566888,1767725442382,-151.0,0.00025,2]
[400566889,1767725442392,-151.0,0.00025,2]
[400566890,1767725442401,-151.0,0.00025,2]
[400566891,1767725442410,-151.0,0.00025,2]
[400566892,1767725442419,-151.0,0.00025,2]
[400566893,1767725442428,-2100.0,0.00025034,7]
[400566894,1767725442437,-500.0,0.00025065,7]
[400566895,1767725442447,-500.0,0.00025069,2]
[400566896,1767725442456,-1150.0,0.00025117,7]
[400566897,1767725442465,-2464.20106546,0.00025126,7]
[400566898,1767725442475,-293.94308261,0.0002513,110]
[400566899,1767725442484,-1000.0,0.00025197,10]
[400566900,1767725442493,-791.0,0.00025197,10]
[400566901,1767725442502,-579.7994531,0.000252,5]
[400566902,1767725442511,-257.86,0.000252,7]
[400566903,1767725442521,-240.04,0.000252,7]
[400566904,1767725442530,-250.0,0.00025205,2]
[400566905,1767725442539,-430.39814706,0.00025205,2]
[400566906,1767725442548,-500.0,0.00025206,2]
[400566907,1767725442558,-1151.0,0.00025224,7]
[400566908,1767725442567,-370.67268282,0.00025304,2]
[400566909,1767725442576,-243.68363741,0.00025334,110]
[400566910,1767725442586,-500.0,0.00025343,2]
[400566911,1767725442596,-1150.0,0.00025383,2]
[400566912,1767725442606,-1150.0,0.00025446,2]
[400566913,1767725442615,-900.0,0.00025469,3]
[400566914,1767725442625,-8003.58721172,0.00025471,2]
[400566915,1767725442635,-500.0,0.0002548,2]
[400566916,1767725442645,-1000.0,0.000255,2]
[400566917,1767725442654,-2328.61,0.000255,14]
[400566918,1767725442664,-156.04,0.00025516,2]
[400566919,1767725442674,-1150.0,0.00025613,2]
[400566920,1767725442683,-500.0,0.00025617,2]
[400566921,1767725442692,-151.0,0.00025675,2]
[400566922,1767725442701,-350.0,0.00025753,2]
[400566923,1767725442710,-500.0,0.00025754,2]
[400566924,1767725442719,-5578.25225134,0.00025792,2]
[400566925,1767725442728,-168.077679,0.00025819,2]
[400566926,1767725442737,-504.0,0.00025891,2]
[400566927,1767725442747,-1365.0,0.00025983,2]
[400566928,1767725442756,-2145.0,0.00025983,2]
[400566929,1767725442765,-628.0,0.00025983,2]
[400566930,1767725442775,-417.0,0.00025983,2]
[400566931,1767725442784,-39765.87356579,0.00026,10]
[400566932,1767725442796,-529.55716524,0.00026,2]
[400566933,1767725442806,-19900.0,0.00026,2]
[400566934,1767725442815,-161.0,0.00026,5]
[400566935,1767725442824,-22020.13,0.00026,2]
[400566936,1767725442835,-1019.0,0.00026,2]
[400566937,1767725442844,-427.42,0.00026027,10]
[400566938,1767725442854,-829.84025677,0.00026071,23]
[400566939,1767725442865,-166.0,0.00026082,19]
[400566940,1767725442874,-216.74142452,0.00026094,110]
[400566941,1767725442883,-410.89,0.000261,2]
[400566942,1767725442892,-11034.61992398,0.00026102,2]
[400566943,1767725442901,-194.54818009,0.0002616,2]
[400566944,1767725442910,-1150.0,0.00026251,2]
[400566946,1767725442919,-1150.0,0.00026276,2]
[400566948,1767725442928,-1151.0,0.00026282,2]
[400566949,1767725442937,-450.0,0.00026301,2]
[400566950,1767725442947,-2758.74,0.000264,7]
[400566951,1767725442956,-1150.0,0.00026422,2]
[400566952,1767725442965,-200.0,0.0002654,14]
[400566953,1767725442974,-1150.0,0.00026541,2]
[400566954,1767725442983,-257.86,0.000266,7]